bitfinex-derivatives/quotes_ETHF0:USTF0_20250602
["timestamp","ask_amount","ask_price","bid_price","bid_amount"]
[1748835281010,6.2705,2494.9,2494.8,1.30134]
[1748835282612,6.2705,2494.9,2494.8,0.80134]
[1748835282813,6.2705,2494.9,2494.8,1.30134]
[1748835285909,0.80138,2494.7,2494.6,0.00600901]
[1748835286107,1.98867577,2494.7,2494.4,0.80146]
[1748835286308,3.2078,2494.5,2494.4,0.80146]
[1748835286510,22.0528,2494.5,2494.4,0.80146]
[1748835287115,23.4006,2494.5,2494.4,0.80146]
[1748835289217,24.5899024,2494.5,2494.4,0.80146]
[1748835289815,24.5899024,2494.5,2494.2,4.21600901]
[1748835289816,24.5899024,2494.5,2494.2,0.80752901]
[1748835290108,0.80151,2494.3,2494.2,0.00600901]
[1748835290416,1.99071112,2494.3,2494.2,0.00600901]
[1748835290611,4.20461112,2494.3,2494.2,0.00600901]
[1748835292913,4.46284171,2494.3,2494.2,0.00600901]
[1748835293120,4.4628425,2494.3,2494.2,0.00600901]
[1748835293418,4.20461112,2494.3,2494.2,0.00600901]
[1748835293714,4.20355867,2494.3,2494.2,0.00600901]
[1748835295008,9.20355867,2494.3,2494.2,0.00600901]
[1748835295213,9.20355867,2494.3,2493.5,4.211]
[1748835295214,0.80163,2493.9,2493.5,4.211]
[1748835295413,3.2078,2493.7,2493.6,0.80173]
[1748835295721,3.4083,2493.7,2493.6,0.80173]
[1748835295919,5.5282,2493.7,2493.6,0.80173]
[1748835296218,6.3299,2493.7,2493.5,5.01275]
[1748835296713,6.3299,2493.7,2493.5,0.80175]
[1748835296918,0.80176,2493.5,2493.4,0.00600901]
[1748835297121,0.80175,2493.6,2493.4,0.80779901]
[1748835297318,1.2941,2493.5,2493.4,0.00600901]
[1748835297516,1.2941,2493.5,2493.4,0.80779901]
[1748835298414,2.09586,2493.5,2493.4,0.00600901]
[1748835300223,0.80188,2493.2,2492.9,0.80194]
[1748835300418,0.80201,2492.8,2492.5,4.211]
[1748835300621,3.2078,2492.6,2492.4,0.80211]
[1748835300916,0.8746,2492.5,2492.4,0.80211]
[1748835301826,0.8746,2492.5,2492.4,0.80212]
[1748835302017,1.6805,2492.5,2492.4,0.80212]
[1748835302828,1.6805,2492.5,2492.3,0.80213]
[1748835303017,2.4826,2492.5,2492.3,0.80214]
[1748835303416,2.4826,2492.5,2492.3,1.30214]
[1748835303925,2.4826,2492.5,2492.3,0.5]
[1748835304120,1.6805,2492.5,2492.3,1.30215]
[1748835304319,2.48259,2492.5,2492.3,0.5]
[1748835304524,1.6805,2492.5,2492.3,1.30214]
[1748835304923,1.6805,2492.5,2492.3,0.5]
[1748835305530,1.6805,2492.5,2492.4,0.80212]
[1748835306729,2.48261,2492.5,2492.3,1.30215]
[1748835307034,1.6805,2492.5,2492.3,0.5]
[1748835307236,2.48261,2492.5,2492.3,0.5]
[1748835307423,1.6805,2492.5,2492.3,0.5]
[1748835307620,2.4826,2492.5,2492.3,1.30214]
[1748835310535,1.6805,2492.5,2492.4,0.80212]
[1748835310837,21.33458,2492.5,2492.3,1.30213]
[1748835311037,20.5325,2492.5,2492.3,0.5]
[1748835311536,20.5325,2492.5,2492.4,0.80212]
[1748835312134,21.33458,2492.5,2492.3,1.30213]
[1748835312842,21.33458,2492.5,2492.3,0.5]
[1748835313034,21.33458,2492.5,2492.3,1.30213]
[1748835313435,21.33458,2492.5,2492.4,0.80212]
[1748835313635,20.5325,2492.5,2492.4,0.80212]
[1748835314330,21.33458,2492.5,2492.3,0.5]
[1748835314533,21.33458,2492.5,2492.2,0.00600901]
[1748835314534,0.80215,2492.3,2492.2,0.00600901]
[1748835314742,4.00995,2492.3,2492.2,0.00600901]
[1748835316743,4.21055,2492.3,2492.2,0.00600901]
[1748835318342,3.88969,2492.3,2492.2,0.00600901]
[1748835320045,5.07147008,2492.3,2492.2,0.00600901]
[1748835321049,3.88969,2492.3,2492.2,0.00600901]
[1748835322146,23.9258455,2492.3,2492.2,0.00600901]
[1748835322958,5.0728455,2492.3,2492.2,0.00600901]
[1748835323259,3.4084,2492.3,2492.2,4.69531901]
[1748835323455,3.4084,2492.3,2492.2,0.00600901]
[1748835323659,3.88969,2492.3,2492.2,4.21400901]
[1748835323954,3.88969,2492.3,2492.2,4.71400901]
[1748835324157,3.88969,2492.3,2492.2,0.50600901]
[1748835324456,3.88969,2492.3,2492.2,0.98731901]
[1748835324661,5.07541692,2492.3,2492.2,0.98731901]
[1748835324957,5.07541692,2492.3,2492.2,0.50600901]
[1748835325159,23.92641692,2492.3,2492.2,0.50600901]
[1748835328169,24.18473132,2492.3,2492.2,0.50600901]
[1748835328464,24.18473132,2492.3,2491.0,43.6478]
[1748835328465,1.20342,2491.9,2491.0,0.48153]
[1748835328764,3.2078,2491.2,2491.0,0.48153]
[1748835329063,18.85,2491.1,2490.9,0.48156]
[1748835329268,20.1459,2491.1,2490.9,0.48156]
[1748835329459,20.1459,2491.1,2490.8,0.00602144]
[1748835329755,18.85,2491.1,2491.0,0.48154]
[1748835330362,18.85,2491.1,2490.8,1.34502144]
[1748835330564,18.85,2491.1,2491.0,0.98154]
[1748835330760,5.34573144,2491.2,2491.0,0.5]
[1748835331069,18.852,2491.1,2491.0,0.98153]
[1748835331369,3.21382144,2491.2,2491.1,0.48152]
[1748835331567,0.00602144,2491.2,2491.1,2.62912]
[1748835331865,3.2078,2491.9,2491.8,0.48138]
[1748835332057,4.39517164,2491.9,2491.8,0.48138]
[1748835332263,4.39517164,2491.9,2491.6,4.209]
[1748835332462,1.18737164,2491.8,2491.7,1.79619]
[1748835333270,3.2078,2491.9,2491.8,0.48138]
[1748835333467,3.2078,2491.9,2491.8,1.79618]
[1748835334372,3.68918,2491.9,2491.6,0.48141]
[1748835334668,3.68918,2491.9,2491.6,4.69041]
[1748835334669,4.97438,2491.9,2491.6,4.69041]
[1748835335168,1.18801934,2491.8,2491.7,0.4814]
[1748835335368,1.18801934,2491.8,2491.7,1.7462]
[1748835336164,1.18801934,2491.8,2491.7,6.7462]
[1748835336370,3.2078,2491.9,2491.8,0.48138]
[1748835336565,4.39670442,2491.9,2491.8,5.95518]
[1748835338068,3.2078,2491.9,2491.8,5.95518]
[1748835338571,3.2078,2492.3,2492.2,0.48131]
[1748835338867,2.35144309,2492.7,2492.6,0.48123]
[1748835339073,2.35144309,2492.7,2492.6,50.28963]
[1748835339964,0.00602144,2492.9,2492.7,0.48121]
[1748835340166,0.00602144,2492.9,2492.8,1.3582]
[1748835340367,0.00602144,2492.9,2492.7,0.48121]
[1748835341173,0.20652144,2492.9,2492.7,0.48121]
[1748835341570,0.20652144,2492.9,2492.8,0.48119]
[1748835342174,0.20652144,2492.9,2492.8,5.48119]
[1748835342369,0.20652144,2492.9,2492.8,6.81619]
[1748835342771,3.2078,2493.4,2493.3,0.48109]
[1748835342975,3.2078,2493.8,2493.7,0.48102]
[1748835343677,3.2078,2493.8,2493.4,2.9852]
[1748835343869,3.68881,2493.8,2493.5,0.48105]
[1748835344075,3.2078,2493.8,2493.7,0.48102]
[1748835345580,3.6888,2493.8,2493.6,0.48102]
[1748835345776,3.2078,2493.8,2493.6,0.48103]
[1748835346379,3.2078,2493.8,2493.7,1.80632]
[1748835346573,3.2078,2493.8,2493.4,1.6502]
[1748835346773,1.3168,2493.7,2493.5,4.201]
[1748835346970,1.3168,2493.7,2493.5,4.68204]
[1748835347370,3.2078,2493.8,2493.5,4.201]
[1748835347777,3.2078,2493.8,2493.6,1.86262]
[1748835348078,3.6888,2493.8,2493.6,1.3816]
[1748835348273,4.9618,2493.8,2493.5,4.68205]
[1748835348678,4.9618,2493.8,2493.6,0.48103]
[1748835349082,0.48103,2493.7,2493.5,4.201]
[1748835349277,1.75403,2493.7,2493.5,4.68205]
[1748835351178,2.60503,2493.7,2493.5,4.68205]
[1748835351581,2.124,2493.7,2493.5,4.68205]
[1748835351778,0.851,2493.7,2493.6,0.48104]
[1748835352084,3.2078,2493.8,2493.7,0.48102]
[1748835352584,3.2078,2493.8,2493.5,4.201]
[1748835352780,1.78083,2493.7,2493.5,4.68205]
[1748835353082,1.2998,2493.7,2493.6,0.48104]
[1748835353584,3.2078,2493.8,2493.5,4.201]
[1748835353779,3.2078,2493.8,2493.7,0.48102]
[1748835354482,3.6888,2493.8,2493.6,0.48103]
[1748835354685,3.2078,2493.8,2493.7,0.48102]
[1748835354887,4.6035,2493.8,2493.7,0.48102]
[1748835355385,5.0845,2493.8,2493.7,0.48102]
[1748835355685,1.3957,2493.8,2493.6,0.48103]
[1748835355990,0.48102,2493.7,2493.6,0.48104]
[1748835356381,1.87671,2493.8,2493.6,0.48104]
[1748835356686,1.3957,2493.8,2493.7,0.48102]
[1748835357387,4.0374,2493.9,2493.8,0.481]
[1748835357787,4.0374,2493.9,2493.8,0.981]
[1748835358485,4.51838,2493.9,2493.8,0.5]
[1748835358683,5.80058,2493.9,2493.8,0.981]
[1748835358878,4.0374,2493.9,2493.8,0.981]
[1748835359084,4.51838,2493.9,2493.8,0.5]
[1748835359388,5.80058,2493.9,2493.8,0.5]
[1748835359884,10.3196,2493.9,2492.6,48.2078]
[1748835360087,0.48116,2493.0,2492.8,0.48118]
[1748835360281,0.48116,2493.0,2492.7,0.4812]
[1748835360487,0.8629,2492.9,2492.8,0.48119]
[1748835361586,0.8629,2492.9,2492.8,0.98119]
[1748835361781,0.8647,2493.2,2492.8,0.5]
[1748835361991,0.8647,2493.2,2493.1,0.48113]
[1748835362984,0.8629,2493.5,2493.4,0.48107]
[1748835363184,2.1616,2493.9,2493.7,0.481]
[1748835363382,2.1616,2493.9,2493.5,1.2869]
[1748835363782,0.7935,2493.9,2493.5,1.2869]
[1748835363983,0.48101,2493.8,2493.6,0.48104]
[1748835364184,0.48101,2493.8,2493.5,1.76795]
[1748835364387,1.84911,2493.8,2493.5,1.76795]
[1748835364797,1.3681,2493.8,2493.6,0.48103]
[1748835364998,1.3681,2493.8,2493.7,0.48102]
[1748835365687,0.7935,2493.9,2493.7,0.48102]
[1748835365894,0.7935,2493.9,2493.8,0.481]
[1748835366094,0.00602144,2494.0,2493.8,0.481]
[1748835366288,0.48699144,2494.0,2493.8,4.681]
[1748835366493,0.48699144,2494.0,2493.8,45.481]
[1748835366798,0.00602144,2494.0,2493.9,0.48098]
[1748835366999,0.00602144,2494.0,2493.9,1.86578]
[1748835367793,0.00602144,2494.0,2493.9,42.66578]
[1748835369399,0.00602144,2494.0,2493.9,47.66578]
[1748835370496,0.00602144,2494.0,2493.9,42.66578]
[1748835370693,0.00602144,2494.0,2493.9,47.66578]
[1748835370890,6.04007309,2494.7,2494.5,0.48086]
[1748835370891,3.2078,2494.7,2494.5,0.48086]
[1748835371097,1.17345921,2494.6,2494.5,4.67986]
[1748835371395,3.2078,2494.7,2494.5,4.67986]
[1748835371594,1.17349499,2494.6,2494.5,4.67986]
[1748835372903,1.17349499,2494.6,2494.5,5.17986]
[1748835373198,1.17349499,2494.6,2494.5,4.699]
[1748835373399,1.17349499,2494.6,2494.5,5.17986]
[1748835374299,6.9e-07,2494.8,2494.7,0.48082]
[1748835374600,6.9e-07,2494.8,2494.7,3.68862]
[1748835374797,6.9e-07,2494.8,2494.7,49.48862]
[1748835376207,6.9e-07,2494.8,2494.7,41.28082]
[1748835376502,6.9e-07,2494.8,2494.7,45.47482]
[1748835377299,6.9e-07,2494.8,2494.7,53.68262]
[1748835378790,6.9e-07,2494.8,2494.7,49.48862]
[1748835378997,6.9e-07,2494.8,2494.7,44.48862]
[1748835379197,6.9e-07,2494.8,2494.7,45.47482]
[1748835379400,6.9e-07,2494.8,2494.7,48.68262]
[1748835380003,6.9e-07,2494.8,2494.7,53.68262]
[1748835380595,6.9e-07,2494.8,2494.7,44.48862]
[1748835380802,6.9e-07,2494.8,2494.7,48.68262]
[1748835382105,6.9e-07,2494.8,2494.7,48.68162]
[1748835384702,1.35690069,2494.8,2494.7,48.68162]
[1748835387807,1.35690069,2494.8,2494.7,49.18162]
[1748835391620,6.9e-07,2494.8,2494.7,49.18162]
[1748835393514,6.9e-07,2494.8,2494.7,54.18162]
[1748835402527,6.9e-07,2494.8,2494.7,53.68162]
[1748835403020,6.9e-07,2494.8,2494.7,54.18162]
[1748835403428,6.9e-07,2494.8,2494.7,49.18162]
[1748835405231,6.9e-07,2494.8,2494.7,54.18162]
[1748835406331,0.8156,2495.7,2495.3,0.48071]
[1748835406528,0.8156,2495.7,2495.6,0.48065]
[1748835408731,0.8156,2495.7,2495.6,45.46865]
[1748835413433,0.8552,2496.1,2496.0,0.48057]
[1748835413624,0.8552,2496.1,2496.0,4.66857]
[1748835413934,0.8552,2496.1,2496.0,7.87637]
[1748835415731,0.8461,2496.4,2496.3,0.48052]
[1748835416630,0.8474,2496.6,2496.5,0.48048]
[1748835416827,0.8474,2496.6,2496.5,4.66748]
[1748835417431,0.8474,2496.6,2496.5,7.87528]
[1748835417826,5.4767,2497.0,2496.5,48.6948]
[1748835418028,5.4767,2497.0,2496.9,0.4804]
[1748835418226,5.4767,2497.0,2496.9,4.6674]
[1748835419936,2.2689,2497.0,2496.9,4.6674]
[1748835422839,2.2689,2497.0,2496.9,7.8752]
[1748835423144,4.0164,2497.4,2497.3,0.48032]
[1748835423339,4.0164,2497.4,2497.3,4.66632]
[1748835427742,0.8086,2497.4,2497.3,4.66632]
[1748835429135,3.2078,2498.1,2497.3,9.186]
[1748835429342,3.2078,2498.1,2498.0,0.48019]
[1748835429536,3.2078,2498.1,2497.5,3.2078]
[1748835429748,3.68798,2498.1,2497.8,0.48022]
[1748835429943,3.2078,2498.4,2497.9,3.2078]
[1748835430246,1.7343,2498.3,2498.2,0.48015]
[1748835430442,2.21444,2498.3,2498.0,0.00600913]
[1748835430649,2.21444,2498.3,2498.1,4.185]
[1748835430849,0.48015,2498.2,2498.0,0.00600913]
[1748835431051,0.48017,2498.1,2498.0,0.00600913]
[1748835431245,0.4802,2498.0,2497.6,40.8]
[1748835431445,21.9948,2498.1,2497.7,4.185]
[1748835431645,0.4802,2498.0,2497.7,4.66525]
[1748835431845,21.9948,2498.1,2497.7,4.185]
[1748835432045,0.48023,2497.8,2497.7,4.185]
[1748835432245,0.48024,2497.8,2497.6,44.985]
[1748835432549,0.8146,2497.7,2497.6,44.985]
[1748835432748,0.8146,2497.7,2497.6,40.8]
[1748835432945,0.8146,2497.7,2497.6,0.48027]
[1748835433343,0.8146,2497.7,2497.6,0.98027]
[1748835434853,0.00596813,2498.0,2497.9,0.48021]
[1748835435044,0.00596813,2498.0,2497.9,4.66521]
[1748835435248,0.00596813,2498.0,2497.9,45.46521]
[1748835436742,0.00596813,2498.0,2497.9,40.8]
[1748835436943,0.00596813,2498.0,2497.6,0.5]
[1748835437151,0.00596813,2498.0,2497.7,4.18]
[1748835437354,0.48023,2497.8,2497.7,4.18]
[1748835437552,0.48022,2497.9,2497.7,45.46025]
[1748835437753,18.78996813,2498.0,2497.8,0.48023]
[1748835438052,18.78996813,2498.0,2497.9,0.48021]
[1748835438450,18.78996813,2498.0,2497.8,0.48022]
[1748835438956,18.78996813,2498.0,2497.9,0.48021]
[1748835439154,0.00596813,2498.0,2497.9,0.48021]
[1748835443757,0.00596813,2498.0,2497.7,40.8]
[1748835443961,0.00596813,2498.0,2497.8,4.18]
[1748835443962,0.48616813,2498.0,2497.8,4.18]
[1748835444259,0.48021,2497.9,2497.8,4.18]
[1748835444459,0.48616813,2498.0,2497.8,4.18]
[1748835444660,0.00596813,2498.0,2497.8,4.18]
[1748835444856,0.48616813,2498.0,2497.8,4.66021]
[1748835445055,0.00596813,2498.0,2497.8,4.18]
[1748835445249,0.48615813,2498.0,2497.9,0.48021]
[1748835445660,0.48021,2497.9,2497.8,4.18]
[1748835446058,0.48616813,2498.0,2497.8,4.66023]
[1748835446559,0.00596813,2498.0,2497.9,0.48021]
[1748835446756,1.16904253,2498.0,2497.9,0.48021]
[1748835447262,1.16904253,2498.0,2497.8,4.18]
[1748835447457,0.00596813,2498.0,2497.9,0.48021]
[1748835447955,1.16833022,2498.0,2497.9,0.98021]
[1748835448155,1.16833022,2498.0,2497.9,0.5]
[1748835448362,1.64852022,2498.0,2497.9,0.5]
[1748835448562,1.16833022,2498.0,2497.9,0.98021]
[1748835449058,2.54063022,2498.0,2497.9,0.98021]
[1748835449661,1.16833022,2498.0,2497.9,0.5]
[1748835449959,2.54063022,2498.0,2497.9,0.98021]
[1748835450364,2.5412718,2498.0,2497.9,0.98021]
[1748835450753,3.0214618,2498.0,2497.9,0.5]
[1748835451863,2.5412718,2498.0,2497.9,0.98021]
[1748835452459,3.0214618,2498.0,2497.9,0.5]
[1748835452965,3.2809757,2498.0,2497.9,0.5]
[1748835453469,3.28098624,2498.0,2497.9,0.5]
[1748835453767,8.28098624,2498.0,2497.9,0.5]
[1748835454063,8.0214618,2498.0,2497.9,0.5]
[1748835454265,8.2810555,2498.0,2497.9,0.5]
[1748835454460,8.28105501,2498.0,2497.9,0.5]
[1748835454666,7.11805607,2498.0,2497.9,0.5]
[1748835454865,8.2818348,2498.0,2497.9,0.5]
[1748835455265,8.28187268,2498.0,2497.9,0.5]
[1748835455565,8.28187077,2498.0,2497.9,0.5]
[1748835455762,8.28186805,2498.0,2497.9,0.5]
[1748835455954,8.02223686,2498.0,2497.9,0.5]
[1748835456159,8.28186889,2498.0,2497.9,0.5]
[1748835456360,3.28186812,2498.0,2497.9,0.5]
[1748835456763,8.28186812,2498.0,2497.9,0.5]
[1748835456960,8.28189772,2498.0,2497.9,0.5]
[1748835457268,8.02223686,2498.0,2497.9,0.5]
[1748835457466,21.80123686,2498.0,2497.9,0.5]
[1748835457656,3.02223686,2498.0,2497.9,0.5]
[1748835457859,22.06091831,2498.0,2497.9,0.5]
[1748835458661,25.26871831,2498.0,2497.9,0.5]
[1748835458861,25.26877374,2498.0,2497.9,0.5]
[1748835459058,23.84525813,2498.0,2497.9,0.5]
[1748835459258,25.00952186,2498.0,2497.9,0.5]
[1748835459455,25.26925876,2498.0,2497.9,0.5]
[1748835460162,0.48027,2497.6,2497.5,0.00600913]
[1748835460361,3.68807,2497.6,2497.5,0.00600913]
[1748835460556,5.11206791,2497.6,2497.5,0.00600913]
[1748835460760,10.11206818,2497.6,2497.5,0.00600913]
[1748835461061,12.29797026,2497.6,2497.5,0.00600913]
[1748835461266,14.67142029,2497.6,2497.5,0.00600913]
[1748835461467,7.29798669,2497.6,2497.5,0.00600913]
[1748835461663,12.29804283,2497.6,2497.5,0.00600913]
[1748835461865,12.29790715,2497.6,2497.5,0.00600913]
[1748835462165,12.29788928,2497.6,2497.5,0.00600913]
[1748835462367,12.29789203,2497.6,2497.5,0.00600913]
[1748835462572,12.29787791,2497.6,2497.5,0.00600913]
[1748835462764,12.29788271,2497.6,2497.5,0.00600913]
[1748835463064,12.75884373,2497.6,2496.8,45.46041]
[1748835463364,3.68818,2497.1,2496.8,45.46041]
[1748835463568,18.781,2497.0,2496.9,0.4804]
[1748835463764,18.781,2497.0,2496.9,4.6604]
[1748835465271,3.2078,2497.1,2497.0,0.48038]
[1748835465571,18.78,2497.1,2497.0,1.81798]
[1748835465963,18.781,2497.2,2497.1,0.48035]
[1748835466165,18.781,2497.2,2497.0,1.81797]
[1748835466367,19.26135,2497.2,2497.0,1.81797]
[1748835466570,19.26135,2497.2,2497.0,1.3376]
[1748835466571,18.781,2497.2,2497.0,1.3376]
[1748835466866,3.68817,2497.1,2496.9,4.18]
[1748835467171,0.4804,2496.9,2496.8,0.5]
[1748835467372,1.6423521,2496.9,2496.8,0.5]
[1748835467670,1.7702,2496.9,2496.8,0.5]
[1748835467866,2.9310416,2496.9,2496.8,0.5]
[1748835469068,21.7140416,2496.9,2496.8,0.5]
[1748835469570,20.5532,2496.9,2496.8,0.5]
[1748835470466,1.7702,2496.9,2496.8,0.5]
[1748835470667,20.5522,2496.9,2496.8,0.5]
[1748835474670,0.48052,2496.3,2496.1,5.8682]
[1748835474869,0.48058,2496.0,2495.7,41.28061]
[1748835475068,22.47238,2496.0,2495.8,1.7967]
[1748835475266,21.9918,2496.0,2495.8,1.7967]
[1748835475466,21.9918,2496.0,2495.8,1.3161]
[1748835475666,22.47238,2496.0,2495.8,1.79671]
[1748835476361,21.9918,2496.0,2495.9,0.48059]
[1748835477770,3.2078,2496.0,2495.9,1.33969]
[1748835477969,21.9938,2496.0,2495.9,1.33969]
[1748835478169,3.2078,2496.0,2495.9,1.33969]
[1748835478374,0.00600913,2496.1,2496.0,0.48057]
[1748835478575,0.00600913,2496.1,2496.0,5.95937]
[1748835478769,0.00600913,2496.1,2496.0,10.95937]
[1748835480764,0.00600913,2496.1,2496.0,5.95937]
[1748835481172,0.20600913,2496.1,2496.0,5.95937]
[1748835485973,0.20600913,2496.1,2496.0,1.77937]
[1748835486173,0.20600913,2496.1,2496.0,5.95937]
[1748835488490,0.20600913,2496.1,2495.9,3.7078]
[1748835488688,2.61517,2496.0,2495.9,3.7078]
[1748835488894,2.1346,2496.0,2495.9,4.18839]
[1748835489199,2.61517,2496.0,2495.9,3.7078]
[1748835489490,2.9769,2496.0,2495.9,4.18839]
[1748835489689,0.20600913,2496.1,2496.0,0.48057]
[1748835490093,1.47150913,2496.1,2495.9,3.7078]
[1748835490784,1.47150913,2496.1,2496.0,0.48057]
[1748835491695,18.99100913,2496.1,2496.0,0.48057]
[1748835492599,0.20600913,2496.1,2496.0,0.48057]
[1748835492798,0.20600913,2496.1,2496.0,1.83047]
[1748835493298,0.20600913,2496.1,2496.0,2.33047]
[1748835498801,0.20600913,2496.1,2496.0,3.15567]
[1748835499794,0.20600913,2496.1,2496.0,6.36347]
[1748835500904,4.549,2496.7,2496.6,0.48046]
[1748835501105,24.49676994,2496.7,2496.6,0.48046]
[1748835501306,5.71177067,2496.7,2496.6,0.48046]
[1748835502908,4.37057067,2496.7,2496.6,0.48046]
[1748835503806,4.37090406,2496.7,2496.6,0.48046]
[1748835505006,3.2078,2496.7,2496.6,0.48046]
[1748835507907,1.74220913,2496.9,2496.8,0.48042]
[1748835508404,3.04260913,2496.9,2496.8,0.48042]
[1748835510207,3.04260913,2496.9,2496.8,4.65842]
[1748835510709,3.2078,2497.3,2497.1,0.48036]
[1748835510909,0.8717,2497.2,2496.6,0.5]
[1748835511106,0.48037,2497.1,2496.7,44.978]
[1748835511300,1.3275,2497.0,2496.7,44.978]
[1748835511504,1.3275,2497.0,2496.9,0.4804]
[1748835512611,0.87766813,2497.2,2497.1,0.48036]
[1748835513108,2.15686813,2497.2,2497.1,4.65836]
[1748835514604,7.15686813,2497.2,2496.9,0.48039]
[1748835514804,3.79840922,2497.2,2496.7,0.00600913]
[1748835515010,3.31805922,2497.2,2497.0,0.48036]
[1748835515309,2.63721813,2497.2,2497.0,0.48036]
[1748835515509,2.63720813,2497.2,2497.0,0.48036]
[1748835515709,2.63721813,2497.2,2497.0,0.48038]
[1748835515918,2.63721813,2497.2,2496.8,4.178]
[1748835515919,20.93686813,2497.2,2497.1,0.48036]
[1748835516106,22.0979481,2497.2,2497.1,0.48036]
[1748835516704,3.3179481,2497.2,2496.9,1.2948]
[1748835517006,2.15686813,2497.2,2496.8,4.178]
[1748835517203,2.15686813,2497.2,2497.0,0.48036]
[1748835517404,2.15686813,2497.2,2497.1,0.48036]
[1748835517705,3.31770303,2497.2,2496.8,4.178]
[1748835518007,0.48037,2497.1,2496.9,0.4804]
[1748835518208,1.2639,2497.0,2496.9,0.4804]
[1748835519313,1.74429,2497.0,2496.8,4.65841]
[1748835519510,0.8816,2496.9,2496.8,4.65841]
[1748835519711,2.1455,2496.9,2496.8,4.65841]
[1748835521811,3.2078,2497.0,2496.9,0.4804]
[1748835522020,5.13037898,2497.0,2496.9,0.4804]
[1748835522711,1.92257898,2497.0,2496.9,0.4804]
[1748835523314,20.70257898,2497.0,2496.9,0.4804]
[1748835523612,1.16168816,2497.0,2496.9,0.4804]
[1748835523817,3.2078,2497.1,2497.0,0.48038]
[1748835524005,4.5055,2497.1,2496.9,0.5]
[1748835524210,1.16173612,2497.0,2496.9,0.98039]
[1748835524409,2.45943612,2497.0,2496.9,0.98039]
[1748835525516,2.93981612,2497.0,2496.9,0.5]
[1748835526819,2.45943612,2497.0,2496.9,0.9804]
[1748835527022,2.93981612,2497.0,2496.9,0.5]
[1748835527317,3.19940488,2497.0,2496.9,0.5]
[1748835527512,3.19939625,2497.0,2496.9,0.5]
[1748835527714,3.19938979,2497.0,2496.9,0.5]
[1748835527907,3.19978924,2497.0,2496.9,0.5]
[1748835528112,3.19978941,2497.0,2496.9,0.5]
[1748835528413,3.19978922,2497.0,2496.9,0.5]
[1748835528613,2.45984613,2497.0,2496.9,0.5]
[1748835528814,21.23984613,2497.0,2496.9,0.5]
[1748835529011,21.97985385,2497.0,2496.9,0.5]
[1748835529211,21.97985385,2497.0,2496.9,0.9804]
[1748835529212,1.16214613,2497.0,2496.9,0.9804]
[1748835529413,19.94214613,2497.0,2496.9,0.9804]
[1748835532219,19.94329887,2497.0,2496.9,0.9804]
[1748835532422,19.9433069,2497.0,2496.9,0.9804]
[1748835533415,20.20321327,2497.0,2496.9,0.9804]
[1748835533611,19.9433069,2497.0,2496.9,0.9804]
[1748835533816,21.9878,2497.1,2497.0,0.48038]
[1748835534022,23.41135086,2497.1,2497.0,1.84578]
[1748835534217,23.15143294,2497.1,2497.0,1.84578]
[1748835534419,23.41135002,2497.1,2497.0,1.84578]
[1748835534622,23.15143294,2497.1,2497.0,1.84578]
[1748835534813,23.41139126,2497.1,2497.0,1.84578]
[1748835535217,20.20359126,2497.1,2497.0,1.84578]
[1748835535423,20.203574,2497.1,2497.0,1.84578]
[1748835535622,20.20357198,2497.1,2497.0,1.84578]
[1748835535820,1.42356546,2497.1,2497.0,1.84578]
[1748835536122,1.16363294,2497.1,2497.0,1.84578]
[1748835536321,1.42356488,2497.1,2497.0,1.84578]
[1748835536522,1.4235625,2497.1,2497.0,1.84578]
[1748835536723,1.42356333,2497.1,2497.0,1.84578]
[1748835536923,1.16363294,2497.1,2497.0,1.84578]
[1748835537327,1.16363294,2497.1,2497.0,6.02178]
[1748835537921,1.16363294,2497.1,2497.0,6.52178]
[1748835538526,1.4235477,2497.1,2497.0,6.52178]
[1748835538726,1.42354812,2497.1,2497.0,6.52178]
[1748835539128,1.16363294,2497.1,2497.0,6.52178]
[1748835540525,0.00596813,2497.2,2497.1,0.48036]
[1748835540724,1.16971886,2497.2,2497.1,2.56706]
[1748835542328,1.16971886,2497.2,2497.1,7.56706]
[1748835542534,3.2078,2497.7,2497.6,0.48027]
[1748835542827,4.63133337,2497.7,2497.6,0.48027]
[1748835543027,4.63133135,2497.7,2497.6,0.48027]
[1748835543226,4.37143723,2497.7,2497.6,1.80537]
[1748835543827,4.3703454,2497.7,2497.6,1.80537]
[1748835544033,4.3703454,2497.7,2497.6,42.60537]
[1748835544726,3.68805,2497.7,2497.6,40.8]
[1748835545030,0.48029,2497.5,2497.2,0.48033]
[1748835545226,2.916,2497.6,2497.1,4.65635]
[1748835545426,1.74731,2497.4,2497.2,0.48034]
[1748835545634,2.42877259,2497.3,2497.2,0.48034]
[1748835545831,2.90909259,2497.3,2497.1,0.48035]
[1748835546031,2.0994,2497.2,2497.1,0.48035]
[1748835546330,0.8166,2497.6,2497.5,0.48029]
[1748835546535,0.48031,2497.4,2497.1,1.2868]
[1748835546725,0.4803,2497.5,2497.3,0.48032]
[1748835546929,1.267,2497.3,2497.2,0.48034]
[1748835547129,1.267,2497.3,2497.1,4.176]
[1748835547433,1.267,2497.3,2497.1,4.65636]
[1748835547434,0.8324,2497.2,2497.1,4.65636]
[1748835548432,0.8324,2497.2,2497.1,4.176]
[1748835548632,2.47415824,2497.2,2497.1,4.176]
[1748835548834,1.99381824,2497.2,2497.0,0.5]
[1748835549034,2.1312,2497.1,2497.0,0.98037]
[1748835550636,2.1312,2497.1,2497.0,0.5]
[1748835550841,3.77277379,2497.1,2497.0,0.5]
[1748835551047,3.29241379,2497.1,2497.0,0.98038]
[1748835551332,3.77277379,2497.1,2497.0,0.5]
[1748835551539,6.98057379,2497.1,2497.0,0.5]
[1748835552640,5.81936,2497.1,2496.9,0.4804]
[1748835552838,21.24111869,2497.0,2496.9,0.4804]